bitfinex/quotes_SOLUSD_20240624
["timestamp","ask_amount","ask_price","bid_price","bid_amount"]
[1719191975506,7.8437,127.49,127.48,0.49946058]
[1719191975730,18.51,127.5,127.34,36.23425993]
[1719191975886,0.17,127.55,127.42,10.88556178]
[1719191976225,7.8426,127.51,127.43,7.8469]
[1719191976503,7.8445,127.48,127.42,10.88556178]
[1719191976715,19.6067,127.51,127.42,10.88556178]
[1719191976882,21.77,127.53,127.42,9.38556178]
[1719191977082,7.8442,127.49,127.42,17.23356178]
[1719191977283,21.77,127.53,127.42,9.38556178]
[1719191977521,1.89194556,127.52,127.42,9.38556178]
[1719191977824,1.61590789,127.51,127.42,9.38556178]
[1719191977989,7.8469,127.44,127.42,9.38556178]
[1719191978184,7.847,127.44,127.42,9.38556178]
[1719191978392,7.8444,127.48,127.42,9.38556178]
[1719191978686,0.17,127.5,127.42,9.38556178]
[1719191978908,7.8456,127.46,127.42,9.38556178]
[1719191979109,0.17,127.5,127.42,9.38556178]
[1719191979403,45.34823239,127.55,127.51,5.17021886]
[1719191979404,40.4118361,127.55,127.51,5.17021886]
[1719191979603,1.2113361,127.55,127.51,5.17021886]
[1719191979831,14.70460999,127.58,127.51,5.17021886]
[1719191979982,20.90090315,127.58,127.51,5.17021886]
[1719191980179,21.77,127.55,127.51,5.17021886]
[1719191980384,7.8419,127.52,127.51,5.17021886]
[1719191980882,19.5996,127.56,127.51,5.17021886]
[1719191981316,9.385562,127.57,127.51,5.17021886]
[1719191983288,14.70460999,127.58,127.53,7.8407]
[1719191983487,14.70460999,127.58,127.51,5.17021886]
[1719191983905,7.8388,127.57,127.51,5.17021886]
[1719191984094,14.70460999,127.58,127.51,5.17021886]
[1719191984303,14.70460999,127.58,127.54,7.8406]
[1719191984483,14.70460999,127.58,127.52,7.8413]
[1719191984783,14.70460999,127.58,127.53,7.8411]
[1719191984982,14.70460999,127.58,127.52,7.8417]
[1719191985299,14.70460999,127.58,127.54,7.8406]
[1719191985703,14.70460999,127.58,127.55,7.8399]
[1719191986013,14.70460999,127.58,127.51,124.77611886]
[1719191986014,14.70461,127.6,127.57,7.8383]
[1719191986201,7.8345,127.64,127.57,7.8383]
[1719191986504,7.8347,127.64,127.56,7.8388]
[1719191986709,22.53861,127.65,127.58,7.8382]
[1719191986912,22.53861,127.65,127.56,6.4587]
[1719191986913,14.70461,127.65,127.56,6.4587]
[1719191987212,21.77,127.74,127.57,64.9364]
[1719191987415,21.77,127.7,127.57,64.5964]
[1719191987799,7.8327,127.67,127.6,7.8364]
[1719191987987,19.5756,127.71,127.61,7.8362]
[1719191987988,7.8322,127.68,127.61,7.8362]
[1719191988802,7.8322,127.68,127.61,7.3362]
[1719191989006,7.8337,127.66,127.59,7.8373]
[1719191989394,7.8328,127.67,127.6,7.8369]
[1719191989596,7.8347,127.64,127.57,7.8387]
[1719191990003,7.8352,127.63,127.56,14.2979]
[1719191990309,60.9234,127.71,127.56,6.4587]
[1719191990490,7.8346,127.64,127.57,7.8388]
[1719191990809,7.8346,127.64,127.57,7.8387]
[1719191990993,7.8339,127.65,127.58,7.8379]
[1719191991811,21.77,127.71,127.59,45.0]
[1719191991999,21.77,127.71,127.57,119.5967]
[1719191992000,7.8324,127.68,127.61,7.836]
[1719191992404,7.8327,127.67,127.61,7.836]
[1719191992715,21.77,127.71,127.59,100.0]
[1719191992915,7.8309,127.7,127.63,7.8349]
[1719191993114,29.6004,127.71,127.64,7.8343]
[1719191993287,7.8308,127.7,127.64,7.8343]
[1719191993698,7.8303,127.71,127.64,7.8343]
[1719191994116,7.8291,127.73,127.62,45.0]
[1719191994295,7.8291,127.73,127.66,7.8332]
[1719191994696,7.8297,127.72,127.66,7.8332]
[1719191995514,7.8297,127.72,127.65,7.8337]
[1719191995726,7.8294,127.73,127.66,7.8332]
[1719191995915,7.8294,127.73,127.63,119.5878]
[1719191996105,7.8294,127.73,127.66,7.833]
[1719191996631,7.8291,127.73,127.66,7.8331]
[1719191996803,7.8296,127.72,127.66,7.8331]
[1719191997002,7.8296,127.72,127.65,7.8337]
[1719191997222,19.5694,127.76,127.67,7.8326]
[1719191997223,7.8292,127.73,127.67,7.8326]
[1719191997607,7.8292,127.73,127.66,7.8331]
[1719191997803,19.5694,127.76,127.66,7.8331]
[1719191998110,19.5708,127.75,127.63,119.5878]
[1719191998313,7.8298,127.72,127.65,7.8337]
[1719191999216,7.8292,127.73,127.66,7.8332]
[1719192000009,7.8292,127.73,127.67,7.8326]
[1719192000430,7.8284,127.74,127.67,7.8322]
[1719192001227,7.829,127.73,127.67,7.8322]
[1719192001433,7.8301,127.72,127.64,45.0]
[1719192001739,19.5696,127.75,127.59,101.81303629]
[1719192001740,19.5726,127.73,127.59,101.81303629]
[1719192001928,7.8304,127.71,127.65,7.8338]
[1719192002144,7.8299,127.72,127.65,7.8338]
[1719192002345,0.17,127.71,127.59,1.81303629]
[1719192002636,0.17,127.71,127.6,7.8369]
[1719192002637,7.8334,127.66,127.6,7.8369]
[1719192002843,19.5787,127.69,127.59,1.81303629]
[1719192002844,7.8329,127.67,127.59,1.81303629]
[1719192003051,7.833,127.67,127.59,1.81303629]
[1719192003250,7.833,127.67,127.61,7.8362]
[1719192003425,7.833,127.67,127.6,7.8367]
[1719192003629,7.8333,127.66,127.6,7.8369]
[1719192004345,7.8329,127.67,127.6,7.8369]
[1719192004961,6.17357637,127.75,127.65,7.8337]
[1719192005122,7.8298,127.72,127.62,100.0]
[1719192005322,7.8298,127.72,127.63,0.34]
[1719192005626,7.8304,127.71,127.63,64.9274]
[1719192005950,7.8304,127.71,127.64,7.8339]
[1719192006246,19.5712,127.74,127.64,7.8339]
[1719192006247,7.8308,127.7,127.64,7.8339]
[1719192006426,7.8308,127.7,127.63,52.8348]
[1719192006630,7.8341,127.65,127.59,1.81303629]
[1719192006840,14.6995,127.74,127.59,1.81303629]
[1719192006841,7.8329,127.67,127.59,1.81303629]
[1719192007042,2.69228741,127.73,127.59,9.65003629]
[1719192007345,2.69228741,127.73,127.59,1.81303629]
[1719192007531,7.8324,127.68,127.62,7.8354]
[1719192007729,7.8324,127.68,127.6,19.5923]
[1719192007730,7.8315,127.69,127.6,19.5923]
[1719192007929,7.8305,127.71,127.65,7.8336]
[1719192008139,7.8316,127.69,127.63,7.835]
[1719192008348,6.40054141,127.74,127.59,1.81303629]
[1719192008656,7.8339,127.65,127.59,9.65053629]
[1719192008840,7.8334,127.66,127.6,7.8368]
[1719192009224,7.8321,127.68,127.61,7.836]
[1719192009539,19.5756,127.71,127.61,7.8359]
[1719192009734,7.8322,127.68,127.61,7.8359]
[1719192010047,7.8328,127.67,127.6,7.8367]
[1719192010254,3.03228741,127.73,127.59,1.81303629]
[1719192010429,21.77,127.7,127.59,1.81303629]
[1719192010631,39.4989,127.69,127.59,1.81303629]
[1719192010827,7.8344,127.65,127.59,9.65053629]
[1719192011026,19.5805,127.68,127.59,1.81303629]
[1719192011321,7.8352,127.63,127.59,1.81303629]
[1719192011525,7.8346,127.64,127.54,119.6016]
[1719192011747,19.7483,127.7,127.55,100.0]
[1719192011961,7.8322,127.68,127.61,7.836]
[1719192012125,19.5783,127.7,127.59,7.837]
[1719192012324,6.8336,127.66,127.59,7.837]
[1719192012860,7.8339,127.65,127.6,45.0]
[1719192013220,7.8335,127.66,127.6,45.0]
[1719192013723,7.8329,127.67,127.6,45.0]
[1719192014227,7.8329,127.67,127.6,7.8367]
[1719192014555,7.8329,127.67,127.61,45.0]
[1719192014750,7.8329,127.67,127.61,52.8361]
[1719192014926,7.831,127.7,127.63,7.8346]
[1719192015124,7.831,127.7,127.61,45.0]
[1719192015433,7.8302,127.71,127.62,100.0]
[1719192015638,7.8302,127.71,127.64,6.237]
[1719192015933,7.8302,127.71,127.65,45.0]
[1719192016250,19.5756,127.71,127.64,6.237]
[1719192016465,39.1409,127.75,127.64,6.237]
[1719192016631,19.5727,127.73,127.64,6.237]
[1719192016829,7.8313,127.7,127.64,6.237]
[1719192017145,7.8314,127.69,127.64,6.237]
[1719192017856,7.8307,127.71,127.64,6.237]
[1719192018156,19.5694,127.76,127.65,45.0]
[1719192018672,7.8302,127.71,127.65,52.8336]
[1719192018961,7.8302,127.71,127.65,45.0]
[1719192020272,7.8349,127.64,127.59,6.5884]
[1719192020460,0.17,127.7,127.59,6.5884]
[1719192020769,7.8341,127.65,127.59,14.4255]
[1719192020938,7.8335,127.66,127.59,14.4255]
[1719192021143,19.5804,127.68,127.59,14.4255]
[1719192021360,7.8335,127.66,127.59,14.4255]
[1719192021872,7.834,127.65,127.59,14.4255]
[1719192022246,7.8361,127.62,127.59,6.5884]
[1719192022486,39.1503,127.72,127.55,1.81360487]
[1719192022487,24.6995,127.71,127.55,1.81360487]
[1719192022654,7.8366,127.61,127.55,9.65360487]
[1719192023169,7.8367,127.61,127.55,9.65360487]
[1719192023399,7.8367,127.61,127.54,7.8405]
[1719192023543,39.161,127.68,127.53,6.3902]
[1719192023544,19.5878,127.63,127.53,6.3902]
[1719192023743,7.8371,127.6,127.54,7.8405]
[1719192024061,7.8371,127.6,127.53,6.3902]
[1719192024062,7.8371,127.6,127.53,14.2311]
[1719192024247,7.8376,127.59,127.53,14.2311]
[1719192024644,60.931,127.68,127.53,6.3902]
[1719192024849,7.8389,127.57,127.54,1.33905933]
[1719192025048,7.8383,127.58,127.54,1.33905933]
[1719192025483,7.8377,127.59,127.54,1.33905933]
[1719192026140,7.8371,127.6,127.54,1.33905933]
[1719192026345,7.8377,127.59,127.53,6.3902]
[1719192026567,19.5909,127.62,127.53,6.3902]
[1719192026760,7.8376,127.59,127.54,45.0]
[1719192027166,7.8382,127.58,127.53,6.3902]
[1719192027553,19.5909,127.62,127.53,6.3902]
[1719192027758,19.5929,127.6,127.53,6.3902]
[1719192027956,7.8389,127.57,127.53,6.3902]
[1719192028252,7.84,127.56,127.51,21.02021886]
[1719192028456,7.8404,127.55,127.51,21.02021886]
[1719192028750,7.8396,127.56,127.51,21.02021886]
[1719192028950,7.839,127.57,127.51,21.02021886]
[1719192029251,7.8398,127.56,127.51,21.02021886]
[1719192029492,7.8403,127.55,127.51,21.02021886]
[1719192029674,19.597,127.58,127.51,21.02021886]
[1719192030178,58.7765,127.61,127.51,28.86261886]
[1719192030392,7.8391,127.57,127.51,21.02021886]
[1719192030551,19.5942,127.59,127.51,28.86261886]
[1719192030875,19.5942,127.59,127.53,7.8412]
[1719192030876,7.8379,127.59,127.53,7.8412]
[1719192031072,19.5834,127.66,127.54,100.0]
[1719192031253,19.5834,127.66,127.55,145.0]
[1719192031456,7.8355,127.63,127.56,7.8392]
[1719192031661,7.8355,127.63,127.57,52.8386]
[1719192031849,7.8355,127.63,127.56,7.8391]
[1719192032165,19.5834,127.66,127.57,45.0]
[1719192032367,39.161,127.68,127.53,101.81388929]
[1719192032563,19.5878,127.63,127.54,45.0]
[1719192032764,7.8388,127.58,127.53,1.81388929]
[1719192032969,7.8378,127.59,127.53,46.81388929]
[1719192033169,6.31089491,127.7,127.56,100.0]
[1719192033353,7.8322,127.68,127.61,7.836]
[1719192033554,7.8333,127.66,127.59,7.8375]
[1719192033753,39.1497,127.72,127.59,7.8375]
[1719192033754,7.8339,127.65,127.59,7.8375]
[1719192033960,7.8333,127.66,127.6,7.8369]
[1719192034150,19.5799,127.69,127.57,19.5957]
[1719192034357,7.8336,127.66,127.6,7.8369]
[1719192034563,7.8336,127.66,127.59,7.8373]
[1719192034874,7.8322,127.68,127.6,45.0]
[1719192035084,7.8322,127.68,127.61,7.8361]
[1719192035457,7.8322,127.68,127.62,0.53645469]
[1719192035678,39.1497,127.72,127.59,7.8374]
[1719192035974,39.1497,127.72,127.57,100.0]
[1719192036180,7.8322,127.68,127.61,7.8363]
[1719192036361,19.5774,127.7,127.6,7.8367]
[1719192036563,7.8328,127.67,127.61,45.0]
[1719192036760,7.8328,127.67,127.61,52.8363]
[1719192037171,7.8333,127.66,127.57,119.5956]
[1719192037378,7.8333,127.66,127.59,7.8372]
[1719192037568,7.8333,127.66,127.6,45.0]
[1719192037976,7.8329,127.67,127.6,45.0]
[1719192038373,7.8329,127.67,127.61,7.8363]
[1719192038573,7.8329,127.67,127.6,52.8367]
[1719192038780,7.8334,127.66,127.6,52.8367]
[1719192039273,7.8329,127.67,127.6,45.0]
[1719192039658,19.5798,127.69,127.59,45.0]
[1719192039859,7.8344,127.65,127.59,7.8372]
[1719192040556,7.8361,127.62,127.54,6.1008]
[1719192040761,7.8357,127.63,127.56,7.8392]
[1719192040964,7.8347,127.64,127.58,7.8377]
[1719192041167,7.8341,127.65,127.59,7.8376]
[1719192042465,21.77,127.71,127.6,45.0]
[1719192042466,31.405804,127.71,127.6,45.0]
[1719192042683,31.405804,127.71,127.61,0.17]
[1719192042883,31.405804,127.71,127.61,100.17]
[1719192043063,7.8308,127.7,127.64,7.8344]
[1719192044690,31.405804,127.71,127.66,7.8331]
[1719192044983,31.405804,127.71,127.67,7.8324]
[1719192045183,31.405804,127.71,127.68,45.0]
[1719192045369,31.405804,127.71,127.69,7.8312]
[1719192045568,31.405804,127.71,127.68,7.8318]
[1719192045780,8.072604,127.71,127.7,6.5959]
[1719192046084,7.8261,127.78,127.71,7.83]
[1719192046286,39.9594606,127.85,127.72,45.0]
[1719192046468,7.8252,127.8,127.72,52.8291]
[1719192046670,19.5579,127.83,127.73,7.8288]
[1719192046873,19.5619,127.8,127.7,6.5959]
[1719192047076,7.8277,127.75,127.7,6.5959]
[1719192047288,19.5619,127.8,127.71,45.0]
[1719192047488,7.8291,127.73,127.7,6.5959]
[1719192047781,7.8275,127.76,127.7,6.5959]
[1719192047961,19.5638,127.79,127.7,6.5959]
[1719192048371,19.5638,127.79,127.7,14.4267]
[1719192048872,7.8266,127.77,127.71,7.8301]
[1719192049075,7.8261,127.78,127.72,45.0]
[1719192049381,7.8267,127.77,127.7,14.4266]
[1719192049597,19.5653,127.78,127.7,6.5959]
[1719192049894,7.8269,127.77,127.71,45.0]
[1719192050180,7.8266,127.77,127.71,52.8299]
[1719192050365,7.8266,127.77,127.71,45.0]
[1719192050572,7.8272,127.76,127.71,45.0]
[1719192051181,7.8279,127.75,127.7,6.5959]
[1719192051398,10.0,127.82,127.65,6.2991]
[1719192051682,0.34,127.81,127.65,6.2991]
[1719192052038,7.8286,127.74,127.65,106.2991]
[1719192052213,7.8279,127.75,127.68,7.8316]
[1719192052500,0.34,127.81,127.67,7.8325]
[1719192052670,10.34,127.81,127.67,7.8325]
[1719192052863,7.8286,127.74,127.67,7.8325]
[1719192053278,0.34,127.81,127.68,7.8319]
[1719192053496,0.34,127.81,127.65,25.8838]
[1719192053497,7.8285,127.74,127.67,7.8324]
[1719192053705,7.829,127.73,127.67,7.8324]
[1719192053888,7.829,127.73,127.68,45.0]
[1719192055285,7.8286,127.74,127.68,45.0]
[1719192055587,7.8286,127.74,127.68,52.832]
[1719192055793,7.8286,127.74,127.68,45.0]
[1719192056263,19.5692,127.76,127.68,45.0]
[1719192056469,7.8297,127.72,127.68,45.0]
[1719192056781,7.8287,127.74,127.67,52.8323]
[1719192056983,7.8291,127.73,127.67,52.8323]
[1719192057184,7.8286,127.74,127.67,52.8323]
[1719192057487,7.8286,127.74,127.68,7.8319]
[1719192057686,7.8286,127.74,127.69,45.0]
[1719192057870,19.5692,127.76,127.67,45.0]
[1719192058074,0.34,127.82,127.67,45.0]
[1719192058075,19.5638,127.79,127.67,100.0]
[1719192058275,7.8265,127.77,127.71,7.8301]
[1719192058483,7.8265,127.77,127.68,147.15175831]
[1719192058484,7.8273,127.76,127.68,166.73045831]
[1719192058675,19.5626,127.8,127.7,7.8306]
[1719192058875,19.5626,127.8,127.71,45.0]
[1719192059180,7.8263,127.78,127.72,7.8295]
[1719192059382,19.5626,127.8,127.7,7.8306]
[1719192059383,7.8265,127.77,127.7,7.8306]
[1719192059575,7.8278,127.75,127.71,45.0]
[1719192059778,7.8274,127.76,127.71,45.0]
[1719192060074,7.8274,127.76,127.7,45.0]
[1719192060383,7.8279,127.75,127.7,45.0]
[1719192060583,7.8274,127.76,127.7,52.8306]
[1719192060768,7.828,127.75,127.7,45.0]
[1719192060975,7.8273,127.76,127.7,52.8308]
[1719192061504,21.77,127.83,127.66,100.0]
[1719192061705,7.8286,127.74,127.68,7.8317]
[1719192062070,7.828,127.75,127.69,7.8313]
[1719192062267,7.8284,127.74,127.68,7.8319]
[1719192062475,7.8279,127.75,127.69,7.8313]
[1719192062704,19.5621,127.8,127.7,45.0]
[1719192063002,7.8274,127.76,127.7,52.8305]
[1719192063512,7.8278,127.75,127.7,45.0]
[1719192063671,0.34,127.82,127.7,45.0]
[1719192063672,7.8287,127.74,127.7,45.0]
[1719192063872,7.8287,127.74,127.69,45.0]
[1719192064306,7.8284,127.74,127.69,45.0]
[1719192064478,9.83446135,127.85,127.73,7.8289]
[1719192064675,9.83446135,127.85,127.71,100.0]
[1719192064876,19.5586,127.83,127.74,7.8279]
[1719192065085,19.5586,127.83,127.71,19.5744]
[1719192065297,9.83446135,127.85,127.72,45.0]
[1719192065298,7.8273,127.76,127.72,45.0]
[1719192065609,7.8279,127.75,127.69,7.831]
[1719192065904,7.8274,127.76,127.7,7.8308]
[1719192066480,19.5649,127.78,127.67,100.0]
[1719192066682,7.8272,127.76,127.7,7.8305]
[1719192066884,7.8272,127.76,127.71,45.0]
[1719192067487,19.5683,127.76,127.65,6.2991]
[1719192067714,7.8291,127.73,127.67,7.8323]
[1719192068005,7.8284,127.74,127.68,7.8318]
[1719192068209,19.5683,127.76,127.65,6.2991]
[1719192068407,7.8299,127.72,127.66,7.8331]
[1719192068577,7.8292,127.73,127.67,7.8325]
[1719192068911,19.5708,127.75,127.65,6.2991]
[1719192069081,7.8305,127.71,127.65,14.1325]
[1719192069607,7.8298,127.72,127.66,7.8331]
[1719192070401,7.8298,127.72,127.67,45.0]
[1719192070818,7.8339,127.65,127.6,6.1772]
[1719192071021,6.1915,127.74,127.6,14.0141]
[1719192071022,7.8329,127.67,127.6,14.0141]
[1719192071327,7.8312,127.7,127.61,1.23509991]
[1719192071493,7.8316,127.69,127.63,7.8349]
[1719192071694,7.8316,127.69,127.64,1.23480961]
[1719192071892,6.1915,127.74,127.64,1.23480961]
[1719192073124,0.34,127.73,127.6,6.1772]
[1719192073419,0.34,127.73,127.6,14.0139]
[1719192073990,0.34,127.73,127.6,6.1772]
[1719192074828,0.34,127.73,127.6,14.014]
[1719192074986,7.8336,127.66,127.6,14.014]
[1719192075188,7.834,127.65,127.61,45.0]
[1719192075426,0.34,127.73,127.56,7.839]
[1719192075427,7.8361,127.62,127.56,7.839]
[1719192075727,19.5844,127.66,127.57,7.8387]
[1719192075728,7.8353,127.63,127.57,7.8387]
[1719192076295,7.8354,127.63,127.57,7.8387]
[1719192076694,7.8342,127.65,127.59,7.837]
[1719192076894,7.8341,127.65,127.58,7.8379]
[1719192077191,19.5804,127.68,127.57,119.5969]
[1719192077411,7.8343,127.65,127.59,7.8371]
[1719192077894,19.5772,127.7,127.6,45.0]
[1719192078087,7.8327,127.67,127.61,7.8361]
[1719192078296,16.1709,127.72,127.57,100.0]
[1719192078499,7.8321,127.68,127.62,7.8356]
[1719192078697,7.8318,127.69,127.63,7.8348]
[1719192078900,7.8309,127.7,127.64,7.8344]
[1719192079223,7.8321,127.68,127.62,7.8351]
[1719192079522,7.8298,127.72,127.66,7.8328]
[1719192079692,7.8305,127.71,127.67,45.48502804]
[1719192079888,22.07447622,127.76,127.66,45.0]
[1719192080089,7.8285,127.74,127.68,7.8317]
[1719192080293,7.8279,127.75,127.69,52.8313]
[1719192080610,7.8272,127.76,127.7,7.8306]
[1719192080804,19.5649,127.78,127.71,45.0]
[1719192080996,7.8273,127.76,127.71,45.0]
[1719192081514,19.5649,127.78,127.7,45.0]
[1719192081515,7.8279,127.75,127.7,45.0]
[1719192081711,7.8306,127.71,127.69,45.0]
[1719192081920,39.1324,127.78,127.63,21.514]
[1719192081921,7.8296,127.72,127.63,21.514]
[1719192082217,7.8301,127.72,127.65,7.8337]
[1719192082511,19.5742,127.72,127.63,21.514]
[1719192082702,39.1324,127.78,127.66,7.8328]
[1719192082703,7.8295,127.73,127.66,7.8328]
[1719192082904,19.5699,127.75,127.66,7.8328]
[1719192083100,7.83,127.72,127.63,121.514]
[1719192083303,7.8303,127.71,127.65,7.8336]
[1719192083499,7.8308,127.7,127.64,7.8343]
[1719192083692,7.8303,127.71,127.65,7.8336]
[1719192083893,7.8297,127.72,127.66,7.833]
[1719192084208,7.8297,127.72,127.67,45.0]
[1719192085909,7.8303,127.71,127.67,45.0]
[1719192086109,7.8303,127.71,127.66,45.0]
[1719192087019,7.8298,127.72,127.66,45.0]
[1719192087401,7.8302,127.71,127.66,45.0]
[1719192090295,7.8316,127.69,127.66,45.0]
[1719192090613,19.5737,127.73,127.66,45.0]
[1719192090924,7.8311,127.7,127.66,45.0]
[1719192091128,7.8311,127.7,127.65,45.0]
[1719192091830,19.5753,127.72,127.63,21.684]
[1719192092011,19.5753,127.72,127.63,21.514]
[1719192092212,19.5768,127.71,127.63,21.514]
[1719192092407,7.8327,127.67,127.63,21.514]
[1719192092912,7.8346,127.64,127.59,6.2226]
[1719192093132,19.5812,127.68,127.59,6.2226]
[1719192093553,7.8342,127.65,127.59,14.0601]
[1719192093833,39.1586,127.69,127.59,6.2226]
[1719192094033,7.8355,127.63,127.59,6.2226]
[1719192094324,7.8347,127.64,127.59,6.2226]
[1719192094510,19.5844,127.66,127.59,6.2226]
[1719192095314,7.8354,127.63,127.59,6.2226]
[1719192095708,7.8368,127.61,127.55,6.4149]
[1719192095900,7.8368,127.61,127.55,14.2547]
[1719192096302,7.8359,127.62,127.55,14.2547]
[1719192096498,7.8363,127.61,127.55,14.2547]
[1719192096811,19.5832,127.67,127.55,6.4149]
[1719192097045,7.8351,127.64,127.58,7.8379]
[1719192097236,7.8341,127.65,127.59,7.8374]
[1719192097735,7.8352,127.63,127.57,7.8384]
[1719192097901,7.8347,127.64,127.58,45.0]
[1719192098338,7.8351,127.63,127.58,45.0]
[1719192098508,7.8348,127.64,127.58,45.0]
[1719192098708,7.8348,127.64,127.58,52.838]
[1719192099005,6.26393089,127.68,127.58,45.0]
[1719192099211,0.34,127.67,127.58,45.0]
[1719192099534,19.5864,127.64,127.58,45.0]
[1719192099715,19.5864,127.64,127.55,6.4149]
[1719192099716,7.837,127.6,127.55,6.4149]
[1719192100108,7.8373,127.6,127.55,6.4149]
[1719192100910,39.1675,127.66,127.51,5.17021886]
[1719192100911,22.0544,127.63,127.51,5.17021886]
[1719192101135,39.1789,127.62,127.51,5.17021886]
[1719192101335,19.597,127.58,127.51,5.17021886]
[1719192101532,39.3489,127.62,127.51,5.17021886]
[1719192101533,7.8419,127.52,127.51,5.17021886]
[1719192101824,39.3489,127.62,127.46,4.0580427]
[1719192101825,19.6036,127.53,127.46,4.0580427]
[1719192102004,7.8429,127.51,127.46,4.0580427]
[1719192102441,19.6036,127.53,127.46,4.0580427]
[1719192102650,7.8449,127.47,127.46,4.0580427]
[1719192102943,19.6066,127.51,127.46,4.0580427]
[1719192102944,7.8445,127.48,127.46,4.0580427]
[1719192103305,7.8449,127.47,127.46,4.0580427]
[1719192103706,7.8449,127.47,127.46,1e-08]
[1719192105337,7.8428,127.51,127.46,1e-08]
[1719192105828,7.842,127.52,127.46,1e-08]
[1719192106034,6.26389591,127.58,127.46,6.42740001]
[1719192106253,6.141,127.59,127.48,19.6109]
[1719192106409,7.8392,127.57,127.5,7.8427]
[1719192106610,7.839,127.57,127.5,7.8427]
[1719192106811,7.839,127.57,127.51,45.0]
[1719192107230,15.0185,127.6,127.51,45.0]
[1719192107426,7.839,127.57,127.51,52.8422]
[1719192107608,7.8384,127.58,127.52,7.8419]
[1719192107823,19.5874,127.64,127.53,45.0]
[1719192108159,19.5874,127.64,127.54,0.17]
[1719192108310,7.8341,127.65,127.58,7.8377]
[1719192108513,7.8349,127.64,127.59,45.0]
[1719192108839,25.713,127.67,127.59,45.0]
[1719192109058,7.8338,127.66,127.58,45.0]
[1719192109244,7.8343,127.65,127.58,7.8381]
[1719192109443,7.8343,127.65,127.59,45.0]
[1719192109610,7.8343,127.65,127.59,52.8375]
[1719192109927,7.8337,127.66,127.59,52.8371]
[1719192110131,7.8324,127.68,127.61,7.8359]
[1719192110339,7.8316,127.69,127.62,45.0]
[1719192110519,21.5975,127.75,127.62,45.0]
[1719192110719,41.1677,127.75,127.62,64.5886]
[1719192110943,7.8304,127.71,127.64,7.8343]
[1719192111126,7.8285,127.74,127.67,7.8326]
[1719192111327,39.1288,127.79,127.68,45.0]
[1719192111517,7.8314,127.69,127.68,45.0]
[1719192111721,7.8314,127.69,127.67,45.0]
[1719192111916,39.1288,127.79,127.67,45.0]
[1719192112135,7.8298,127.72,127.67,45.0]
[1719192112345,19.5729,127.73,127.67,45.0]
[1719192112521,39.1381,127.76,127.67,45.0]
[1719192112522,7.832,127.68,127.67,45.0]
[1719192112729,7.8325,127.68,127.61,8.0061]
[1719192112929,19.5759,127.71,127.61,8.0061]
[1719192112930,7.8327,127.67,127.61,8.0061]
[1719192113255,7.8318,127.69,127.62,45.0]
[1719192113545,7.8318,127.69,127.62,7.8355]
[1719192113832,7.8327,127.67,127.63,45.0]
[1719192114213,7.8322,127.68,127.62,45.0]
[1719192114940,7.833,127.67,127.62,45.0]
[1719192115143,7.8322,127.68,127.62,7.8356]
[1719192115327,7.8322,127.68,127.63,45.0]
[1719192116147,7.8322,127.68,127.62,45.0]
[1719192117361,39.1381,127.76,127.62,52.8354]
[1719192117362,7.8317,127.69,127.62,52.8354]
[1719192117722,7.8322,127.68,127.62,52.8354]